{"text_format":"3","workbook":"xlsx","n_sheets":10,"sheets":["汇总表","QG-06","QG-13","QG-17已合并","QG-23通讯设备","QG-29","QG-30","QG-32已合并","QG-37餐饮用具已合并","QG-42员工更衣室用品已合并"],"not_rendered":{"images":7,"defined_names":27},"read":"whole","date_system":"1900"}

{"sheet":"汇总表","index":0,"n_rows":13,"n_cols":4,"rows_kept":13,"merged":[[1,0,1,3]]}
[]
["芜湖卓悦酒店管理有限公司通讯设备采购"]
["序号","物品名称","金额（元）","备注"]
[1,"QG-23通讯设备",{"$f":"'QG-23通讯设备'!J10","v":{"v":0,"d":"0.00"}}]
{"$rows_empty":8}
[null,"合计",{"$f":"SUM(C4:C11)","v":{"v":0,"d":"0.00"}}]

{"sheet":"QG-06","index":1,"n_rows":21,"n_cols":14,"rows_kept":21,"hidden":true,"merged":[[1,3,1,4],[3,0,3,2],[7,9,9,9]]}
[{"$f":"#REF!","v":{"$error":"#REF!"}},{"$nulls":8},"Number of Seats","N/A"]
[{"$f":"#REF!","v":{"$error":"#REF!"}},null,null,"总统套房床体及床垫尺寸需再确认",{"$nulls":5},"Number of Keys",{"$f":"F4","v":{"$error":"#REF!"}}]
[{"$f":"#REF!","v":{"$error":"#REF!"}},{"$nulls":4},"Hotel rooms ","QueenBed Room","Twin Room",null,"Number Twin Beds",{"$f":"H4*2","v":{"$error":"#REF!"}}]
[{"$f":"#REF!","v":{"$error":"#REF!"}},{"$nulls":4},{"$f":"+#REF!","v":{"$error":"#REF!"}},{"$f":"+#REF!","v":{"$error":"#REF!"}},{"$f":"+#REF!","v":{"$error":"#REF!"}},null,"Number QueenBed Beds",{"$f":"G4","v":{"$error":"#REF!"}}]
["QG-06 Guest Room Bed床(不含床头板）"]
["Back"]
["Code","Quotation Grouping No"," Description\n品项","Translation\n中文","Size\n规格","Sub Category\n子类别","Brand\n参考品牌","Supplier\n供应商","Either :         Quantity Room\n每房数量","Picture\n图片","Quantity Required\n所需数量","Estimate Unit Cost\nRMB\n预估单价","Estimate Total Cost\nRMB\n预估总价","备注"]
[1,"QG-06-A","QueenBed Beds","大床垫（含总套）","183x 203x 30cm","Bed","金可儿/舒达/席梦思",null,0,null,null,{"v":2400,"d":"2,400.00"},{"$f":"L8*K8","v":0},"广州佛山的软装公司已买，不用买了"]
[2,"QG-06-A"," box spring","大床架（含总套）","183x 203x25-30cm",{"$nulls":3},0,null,null,{"v":1800,"d":"1,800.00"},0,"广州佛山的软装公司已买，不用买了"]
[3,"QG-06-A","Twin Beds ","小床垫","123 x 203 x 30cm","Bed","金可儿/舒达/席梦思",null,0,null,null,{"v":1600,"d":"1,600.00"},0,"广州佛山的软装公司已买，不用买了"]
[4,"QG-06-A","box spring","小床架","123 x 203 x 25-30cm",{"$nulls":3},0,null,null,{"v":1700,"d":"1,700.00"},0,"广州佛山的软装公司已买，不用买了"]
[5,"QG-06-A","Transportation Fee\nEstimated Cost","运费\n预估费用",null,null,"金可儿/舒达/席梦思",{"$nulls":6},"广州佛山的软装公司已买，不用买了"]
[6,"Optional","Mattress Protector- Waterproof、Breathable、Dust Mite Barrier","床垫保护套\n防水、防虫","180*200*40CM","Optional","金可儿/舒达/席梦思",{"$nulls":4},{"v":190,"d":"190.00"},{"$f":"+L13*K13","v":0},"广州佛山的软装公司已买，不用买了"]
[7,"Optional","Mattress Protector- Waterproof、Breathable、Dust Mite Barrier","床垫保护套\n防水、防虫","120*200*40CM","Optional","金可儿/舒达/席梦思",{"$nulls":4},{"v":149,"d":"149.00"},{"$f":"+L14*K14","v":0},"广州佛山的软装公司已买，不用买了"]
[8,"QG-06-A","Rollaway Beds","可移动式床","110 x 190 x (24+18)cm","Bed","金可儿/舒达/席梦思",null,0,null,null,{"v":2650,"d":"2,650.00"},{"$f":"L15*K15","v":0},"广州佛山的软装公司已买，不用买了"]
[9,"QG-06-B","Travel Baby Cribs ","婴儿床（含床品）","Miscellaneous","Bed","好孩子/爱里奇/Faroro",null,0,null,null,{"v":2190,"d":"2,190.00"},0,"广州佛山的软装公司已买，不用买了"]
[10,"QG-06-C","Cribs Cover","婴儿床罩","Miscellaneous","Bed","好孩子/爱里奇/Faroro",null,0,null,null,{"v":228,"d":"228.00"},0,"广州佛山的软装公司已买，不用买了"]
[11,"QG-06-C","Cribs Blanket","婴儿床上五件套","Miscellaneous","Bed","好孩子/爱里奇/Faroro",null,0,null,null,{"v":300,"d":"300.00"},0,"广州佛山的软装公司已买，不用买了"]
[12,"QG-06-C","Hard mattress for Rollaway Beds","加床软硬板","120*200cm",null,"好孩子/爱里奇/Faroro",{"$nulls":4},{"v":800,"d":"800.00"},0,"广州佛山的软装公司已买，不用买了"]
[13,"QG-06-C","Hard mattress for Rollaway Beds","加床软硬板","180*200cm",null,"好孩子/爱里奇/Faroro",{"$nulls":4},{"v":1200,"d":"1,200.00"},0,"广州佛山的软装公司已买，不用买了"]
[null,null,"Grand Total合计",{"$nulls":8},0,"不用买","广州佛山的软装公司已买，不用买了"]

{"sheet":"QG-13","index":2,"n_rows":96,"n_cols":13,"rows_kept":96,"hidden":true,"merged":[[10,11,11,11]]}
[{"$f":"#REF!","v":{"$error":"#REF!"}}]
[{"$f":"#REF!","v":{"$error":"#REF!"}},{"$nulls":5},"Capacity座位数：",{"$f":"+#REF!","v":{"$error":"#REF!"}},{"$nulls":4},1.04]
[{"$f":"#REF!","v":{"$error":"#REF!"}}]
[{"$f":"#REF!","v":{"$error":"#REF!"}}]
["QG-13 Japanese Restaurant日式餐具"]
["Back"]
["NO","QG NO","Description\n品项","CHN\n中文","Recommended Brands or Category\n推荐参考品牌或类别","PAR 配置系数","Quantity Required\n所需数量","Code\n代码","Spec.\n选样（参考参数）","Estimate Unit Cost\n预估单价","Estimate Total Cost\n预估总价","Picture\n图片","Remarks\n备注"]
[1,"QG-13-M","Wooden Appetiser Box w9xd9xh7cm","白木蒸笼组合","DONGXING/和司/谦荣",0.5,0,"DX - 009 - 01",null,0,{"$f":"+J8*G8","v":0},null,"国产"]
[{"$f":"A8+1","v":2},"QG-13-M","Black Rectangular Appetiser Board 30x10x4cm","目细角付台","DONGXING/和司/谦荣",0.5,0,"DX - 024 - 11",null,0,0]
[3,"QG-13-M","Rectangular Dish 22x14x4.5cm","荒引付台云流","DONGXING/和司/谦荣",0.5,0,"DX09 - 031 - 12",null,0,0,null,"进口"]
[4,"QG-13-M","Bamboo Tempura Basket Triangle ","染竹结笼","DONGXING/和司/谦荣",0.5,0,"DX09 - 053 - 21",null,0,0]
[5,"QG-13-M","Bamboo Tempura Basket Triangle","染竹结笼","DONGXING/和司/谦荣",0.5,0,"DX09 - 053 - 17",null,0,0]
[6,"QG-13-M","Bamboo  Basket Round 19xH5cm","飞鸟足付盛器","DONGXING/和司/谦荣",0.5,0,"DX09 - 054 - 01",null,0,0]
[7,"QG-13-M","Bamboo Basket 23x21x4cm","虎竹箕","DONGXING/和司/谦荣",0.5,0,"DX09 - 065 - 10",null,0,0]
[8,"QG-13-M","Dish For Rectangular Appetiser Box","手竹器","DONGXING/和司/谦荣",0.5,0,"DX-095 -04",null,0,0]
[9,"QG-13-M","Dish For Rectangular Appetiser Box","角钵","DONGXING/和司/谦荣",0.5,0,"DX-095 -05",null,0,0,null,"进口"]
[10,"QG-13-M","Bento Box w/Lid [including banquet bento lunches]","松花堂用葫芦形内胆","DONGXING/和司/谦荣",1,0,"S9-26-9",null,0,0]
[11,"QG-13-M","Rectangular Bento Box w/Lid [Including Banquet Bento LuCHNes}","三仕切","DONGXING/和司/谦荣",1,0,"S9 - 30 - 16",null,0,0]
[12,"QG-13-M","Fruit Dish 202x68","长方形烤杉垫盘","DONGXING/和司/谦荣",1,0,"S9-7-4",null,0,0]
[13,"QG-13-M","Square Plate 113x113","七寸寿长篮","DONGXING/和司/谦荣",1,0,"S9-82-11",null,0,0]
[14,"QG-13-M","Square Plate 182x182","六寸寿长篮","DONGXING/和司/谦荣",1,0,"S9-82-12",null,0,0]
[15,"QG-13-M","Bowl W/Lid 105x88","七寸寿长篮","DONGXING/和司/谦荣",1,0,"S9-82-11",null,0,0]
[16,"QG-13-M","Bowl Round 156x82","桥型盛器","DONGXING/和司/谦荣",0.5,0,"S9-83-2",null,0,0]
[17,"QG-13-M","Bowl Round 184x93","桥型盛器","DONGXING/和司/谦荣",0.5,0,"S9-83-3",null,0,0]
[null,null,"Chinaware瓷器",null,null,0,0]
[{"$f":"A24+1","v":18},"QG-13-B","Steam Egg Cup w Lid","华南蛮受","DONGXING/和司/谦荣",1,0,"DX09 - 081 - 03",null,0,{"$f":"+J26*G26","v":0},null,"进口"]
[{"$f":"A26+1","v":19},"QG-13-B","Stew Dish w/Lid","南蛮银河","DONGXING/和司/谦荣",1,0,"DX09 - 080 - 08",null,0,0,null,"进口"]
[20,"QG-13-B","Dish w Lid 11.5x9cm","手描唐草煮物碗","DONGXING/和司/谦荣",1,0,"DX09 - 080 -05",null,0,0,null,"进口"]
[21,"QG-13-B","Round Dish 16x5.2cm","志野桔梗足付向付","DONGXING/和司/谦荣",1,0,"DX09 - 082 -01",null,0,0,null,"进口"]
[22,"QG-13-B","Rectangular Appetiser Box w/Lid","大寿透","DONGXING/和司/谦荣",0.5,0,"DX -095-01/DX-095 -02",null,0,0,null,"进口"]
[23,"QG-13-B","Dish For Rectangular Appetiser Box","菊小皿","DONGXING/和司/谦荣",0.5,0,"DX-095 -03",null,0,0,null,"进口"]
[24,"QG-13-B","Round Dish Deep 5.3x4cm","立边方皿","DONGXING/和司/谦荣",1,0,"DX09 - 090 - 06",null,0,0,null,"进口"]
[25,"QG-13-B","Round Dish ","花形珍味","DONGXING/和司/谦荣",1,0,"S9-59-8",null,0,0]
[26,"QG-13-B","Glass Dish","喇叭形珍味钵","DONGXING/和司/谦荣",1,0,"S9-59-7",null,0,0]
[27,"QG-13-B","Leaf Shap Dish Small","叶形珍味","DONGXING/和司/谦荣",1,0,"S9-65-11",null,0,0]
[28,"QG-13-B","Wafe Dish","瓢钵","DONGXING/和司/谦荣",1,0,"S9-68-15",null,{"v":15,"d":"15.00"},0]
[29,"QG-13-B","Wafe Dish","瓢钵","DONGXING/和司/谦荣",1,0,"S9-68-17",null,0,0]
[30,"QG-13-B","Leaf Dish Narrow","细叶形珍味","DONGXING/和司/谦荣",1,0,"S9-71-9",null,0,0]
[31,"QG-13-B","Maple Leafe Dish","红叶珍味","DONGXING/和司/谦荣",1,0,"S10-101-6",null,0,0,null,"推荐"]
[32,"QG-13-B","Rice Bowl W/Lid","百合饭碗","DONGXING/和司/谦荣",0.1,0,"S9-20-5",null,0,0]
[33,"QG-13-B","Miso Soup Cup W/Lid","蛋碗","DONGXING/和司/谦荣",0.6,0,"S9-16-10",null,0,0]
[34,"QG-13-B","Rectangular Japanese Tray 434x309x13","长方形烤杉垫盘","DONGXING/和司/谦荣",1,0,"S9-7-6",null,0,0]
[35,"QG-13-B","Half Moon Tray 269x238x10","半月盘","DONGXING/和司/谦荣",1,0,"S9-10-27",null,0,0]
[36,"QG-13-B","Tulip Shape Dish","割山椒珍味","DONGXING/和司/谦荣",0.6,0,"S9-68-12",null,0,0]
[37,"QG-13-B","Flower Dish","梅花珍味","DONGXING/和司/谦荣",0.6,0,"S9-60-22",null,0,0]
[38,"QG-13-B","Appetiser Dish","贝形珍味","DONGXING/和司/谦荣",0.6,0,"S9-76-2",null,0,0]
[39,"QG-13-B","Square Dish","入隅小钵","DONGXING/和司/谦荣",0.6,0,"S9-79-14",null,0,0]
[40,"QG-13-B","Spoon Dish","小钵","DONGXING/和司/谦荣",0.6,0,"S9-79-33",null,0,0]
[41,"QG-13-B","Curved Dish 107x107x57","四角钵","DONGXING/和司/谦荣",0.6,0,"S9-80-10",null,0,0]
[42,"QG-13-B","Round Bowl 138x73","丸钵","DONGXING/和司/谦荣",0.6,0,"S9-80-11",null,0,0]
[43,"QG-13-B","Dish 121x43","四叶皿","DONGXING/和司/谦荣",0.6,0,"S9-81-12",null,0,0]
[44,"QG-13-B","Finger Appetiser Plate","手拿前菜碟","DONGXING/和司/谦荣",0.5,0,"s10-76-9",null,0,0]
[45,"QG-13-B","Vinegar Bottle","醋罐","DONGXING/和司/谦荣",0.3,0,null,null,0,0]
[46,"QG-13-B","Soya Sauce Bottle","酱油罐","DONGXING/和司/谦荣",0.3,0,null,null,0,0]
[47,"QG-13-B","Two Compartement Dish for Sauce","二切调味皿","DONGXING/和司/谦荣",0.8,0,"S10-109-10",null,0,0]
[48,"QG-13-B","Coupe Plate Round 11cm","海鲜椭圆盛皿","DONGXING/和司/谦荣",0.5,0,"s10-74-5",null,0,0,null,"进口"]
[49,"QG-13-B","Coupe Plate Round 16cm","海鲜椭圆盛皿","DONGXING/和司/谦荣",0.5,0,"s10-74-6",null,0,0,null,"进口"]
[50,"QG-13-B","Soya Sauce Dish","前菜碟","DONGXING/和司/谦荣",0.8,0,null,null,0,0]
[51,"QG-13-B","JP Tooth Pick Box","牙签盅","DONGXING/和司/谦荣",0.5,0,null,null,0,0]
[52,"QG-13-B","Face Towel Tray","舟型毛巾托","DONGXING",0.8,0,"S9-105-5",null,0,0]
[53,"QG-13-B","Sake Cup","清酒杯","Schott Zwiesel/Spiegelau/Riedel",1,0,null,null,0,0]
[54,"QG-13-B","Sake Bottle ","日本米酒瓶","DONGXING/和司/谦荣",0.5,0,null,null,0,0]
[55,"QG-13-B","JP Tea Cup","日式茶杯","DONGXING/和司/谦荣",1,0,null,null,0,0]
[56,"QG-13-B","JP Tea Cup Saucer","日式茶托","DONGXING/和司/谦荣",1,0,null,null,0,0]
[57,"QG-13-B","Creamer","奶油壶","DONGXING/和司/谦荣",0.3,0,null,null,0,0]
[58,"QG-13-B","Sugar Bowl","糖罐","DONGXING/和司/谦荣",0.3,0,null,null,0,0]
[59,"QG-13-B","Sugar & Creamer Tray","糖罐及奶油壶托","DONGXING/和司/谦荣",0.3,0,null,null,0,0]
[60,"QG-13-B","Tea Pot 220ml","酱油罐（带龙头）","DONGXING/和司/谦荣",0.3,0,"S10-115-26",null,{"v":500,"d":"500.00"},0]
[61,"QG-13-B","Tea Pot 500ml","茶壶500ml","DONGXING/和司/谦荣",0.3,0,null,null,0,0]
[62,"QG-13-B","Tea Pot Small 150ml","土瓶","DONGXING/和司/谦荣",0.4,0,"S10-115-29",null,0,0]
[63,"QG-13-B","Deep Sauce Dish D6xH2.3cm","丸小钵","DONGXING/和司/谦荣",0.8,0,"s10-112-20",null,0,0]
[64,"QG-13-B","Tempura Sauce Dish","吞水","DONGXING/和司/谦荣",0.8,0,"s10-113-11",null,0,0]
[65,"QG-13-B","Pickle Dish","前菜碟","DONGXING/和司/谦荣",0.8,0,null,null,0,0]
[66,"QG-13-B","Swirl Noodle Bowl","面碗","DONGXING/和司/谦荣",0.3,0,"S10-112-12",null,0,0]
[67,"QG-13-B","Noodle Bowl w/Chopstick Holder","面碗","DONGXING/和司/谦荣",0.3,0,"S10-112-13",null,0,0]
[null,null,"sub total小计",null,null,0,0,null,null,0]
[{"$f":"A75+1","v":68},"QG-13-M","Soup Spoon","汤勺","DONGXING/和司/谦荣",1,0,null,null,0,{"$f":"+J77*G77","v":0}]
[{"$f":"A77+1","v":69},"QG-13-M","Wooden Ladle"," 小木勺","DONGXING/和司/谦荣",0.1,0,28,null,0,0]
[70,"QG-13-M","Shallow Sashimi 24x15x2.4cm","创作盛台","DONGXING/和司/谦荣",0.1,0,"DX09-027-01",null,0,0,null,"30*9*2.4cm"]
[71,"QG-13-M","Hot Pot","锅","DONGXING/和司/谦荣",0.1,0,"DX09-162-03",null,0,0]
[72,"QG-13-M","Hot Pot Stove","大火锅盘","DONGXING/和司/谦荣",0.1,0,null,null,0,0]
[73,"QG-13-M","Japanese Hot Pot set","锅","DONGXING/和司/谦荣",0.2,0,"DX09-162-01",null,0,0,null,"一套"]
[74,"QG-13-M","Japanese Hot Pot","日式火锅","DONGXING/和司/谦荣",0.2,0,"DX09-162-02",null,0,0]
[75,"QG-13-M","Chop Stick Nest [holder]","筷架","DONGXING/和司/谦荣",1,0,"S9-104-38",null,0,0]
[76,"QG-13-M","Copper Pot ","铜烧锅","DONGXING/和司/谦荣",0.1,0,"DX09-175-01",null,0,0,null,"进口"]
[77,"QG-13-M","Copper Pot small","牛肉火锅","DONGXING/和司/谦荣",0.1,0,"DX09-162-01",null,0,0,null,"单锅"]
[78,"QG-13-M","Ladle","火锅勺","DONGXING/和司/谦荣",0.2,0,null,null,0,0]
[79,"QG-13-M","Bamboo Mat","竹茶网","DONGXING/和司/谦荣",0.4,0,null,null,0,0]
[80,"QG-13-M","Perf Ladle","火锅勺","DONGXING/和司/谦荣",0.2,0,null,null,0,0]
[81,"QG-13-M","Soup Ladle","去垢勺","DONGXING/和司/谦荣",0.2,0,null,null,0,0]
[82,"QG-13-M","Sauce Ladle"," 汁勺","DONGXING/和司/谦荣",0.2,0,null,null,0,0]
[83,"QG-13-M","Stew Pot medium","釜3合","DONGXING/和司/谦荣",0.1,0,"DX09-172-03",null,0,0,null,"乌龙锅"]
[84,"QG-13-M","Stew Pot large","釜5合","DONGXING/和司/谦荣",0.1,0,"DX09-172-04",null,0,0,null,"乌龙锅"]
[85,"QG-13-M","Wooden Chop Sticks w/Cover & Rest Logo","木质筷子及筷架","DONGXING/和司/谦荣",2,0,null,null,0,0]
[{"$nulls":12},"已合并至QG19"]
[null,null,"GRAND TOTAL总数",{"$nulls":6},0,{"$f":"SUM(K8:K94)","v":0},0,"已合并至QG19"]

{"sheet":"QG-17已合并","index":3,"n_rows":9,"n_cols":12,"rows_kept":9,"hidden":true,"merged":[[8,0,8,8]]}
[{"$f":"#REF!","v":{"$error":"#REF!"}}]
[{"$f":"#REF!","v":{"$error":"#REF!"}}]
[{"$f":"#REF!","v":{"$error":"#REF!"}}]
[{"$f":"#REF!","v":{"$error":"#REF!"}}]
["QG-17 F&B Misc餐饮杂项"]
["Back"]
["序号","品名","参考品牌","技术/规格参数","单位","数量","含税单价","税前单价","税金","合价","参考图片","备注"]
[]
["Grand total 总计：",{"$nulls":8},{"v":0,"d":"0.00"}]

{"sheet":"QG-23通讯设备","index":4,"n_rows":10,"n_cols":12,"rows_kept":10,"merged":[[0,0,0,11],[9,0,9,8]]}
["QG-23通讯设备"]
["序号","品名","参考品牌","技术/规格参数","单位","数量","含税单价（元）","税前单价（元）","税金(元）","合价（元）","参考图片","备注"]
[1,"对讲机","鸿威 ；威贝特；小米","1、公网对讲机，支持电信、联通、移动SIM卡，卡费赠送三年，到期后换卡，每台换卡金额不超过20元/三年。含对讲机入耳式耳机。12个以上频道。\n2、电池容量:大于等于2800mAh，充电方式:TYPE-C 带充电器。\n3、接收灵敏度:-106dbm、最大输出功率:23dBm、工作温度范围:-10℃~+55℃存储温度范围:-40℃~+85℃音频输出功率:1.3W@10%失真。\n4、洪亮音质、GPS定位、5000公里不限距离、単呼、群呼、音量调节。 \n5、非人为损坏保修2年。","个",89,{"$nulls":3},{"$f":"G3*F3","v":0},{"$error":"#VALUE!"},"客房 26 个；前厅15个；康乐5个；餐饮服务35个（中餐14+西餐16+宴会5 ）；餐饮厨房8（中厨4+西厨4）  "]
[2,"对讲机","鸿威 ；威贝特；小米","1、公网对讲机，支持电信、联通、移动SIM卡，第一年卡费赠送，后续10元/年/台。含对讲机入耳式耳机。12个以上频道。\n2、电池容量:大于等于5600mAh，充电方式:TYPE-C 带座充，\n3、接收灵敏度:-106dbm、最大输出功率:23dBm、工作温度范围:-10℃~+55℃存储温度范围:-40℃~+85℃音频输出功率:1.3W@10%失真 \n4、洪亮音质、GPS定位、5000公里不限距离、単呼、群呼、音量调节。 \n5、非人为损坏保修2年。","个",17,{"$nulls":3},0,{"$error":"#VALUE!"},"安保5个，工程11个；其它部门   及备用1个"]
[3,"客房电话","比特；肯特；美爵信达","1、10个可编程“一键通”按键，免提配置。\n2、兼容酒店的上海启赛电话交换机，具备来电显示功能。\n3、DTMF/FSK双制式来电显示、50组8位(或32组16位)来电号码及来电时间记录、14组8位(或8组16位)去电号码及通话时间记录\n4、12位高清屏幕,实时日期及星期显示\n5、可印刷酒店名称及电话指南的迷你面板\n6、具有克隆编程、忙音挂机、留言灯直接提取、重拨号码定时消失等功能。\n7、留言灯、振铃指示灯、免提一键通，三键合一；留言灯一键快速提取，配合启赛电话交换机使用。\n8、自动收线(挂机不好时)、8位出局码设置/转接\n9、2种颜色可选\n10、非人为损坏保修2年。","个",235,{"$nulls":3},0,{"$error":"#VALUE!"},"客房203个，套间30个，备用2个"]
[4,"洗手间电话（要有线的）","比特；肯特；美爵信达","1、无叉簧设计，多重防泼溅设计、防水防潮  ，手柄听筒，挂式安装\n2、速拔键：三个速拔键\n3、手柄三级音量循环调节键\n4、信息指示灯：留言指示和振铃指示 \n5、2种颜色可选\n6、非人为损坏保修2年。  ","个",210,{"$nulls":3},0,{"$error":"#VALUE!"},"客房203个，备用7个"]
[5,"公共区域电话（要有线的）","比特；肯特；美爵信达","1、SMT贴片元件,双面玻纤机芯板,耐潮\\阻燃,稳定可靠\n2、ABS塑胶料,外壳耐摔,经久耐用不变色\n3、优质听筒曲线回缩弹性较好,不易成拧\n4、优质元器件,通话清晰,无杂音\n5、硅胶按键设计,人体工学，手感舒适\n6、可定制的大面板及0-8个快捷服务键可选\n7、棱角分明方正稳重造型,款式精致,尊贵典雅\n8、座机采用底座，亚克力面板\n9、2种颜色可选\n10、非人为损坏保修2年。 ","个",11,{"$nulls":3},0,{"$error":"#VALUE!"},"11个楼层"]
[6,"办公室电话","得力、步步高、TCL","1.两个外接口,可并联分机、多首铃声可选、带免提功能；\n2、兼容酒店的上海启赛电话交换机，具备来电显示功能。\n3、来电储存、屏幕亮度5级调节、来去电查询、去电储存；\n4、防雷功能、电话线直连、无需电池、无需电话卡、可连分机；\n5、2种颜色可选\n6、非人为损坏保修2年。 ","个",66,{"$nulls":3},0,{"$error":"#VALUE!"},"财务10+行政10+销售部13+餐饮部5+安工8+客房办公16+园区食堂2+备用2"]
[7,"前台数字电话（要有线的）","启赛、比特；肯特；","1、完善的名片功能：可存储500条的记录，可进行分类存储，同时可存储个人备注信息，对号码进行快速查找、增加、修改、删除、更改存储类型等操作。\n2、来/去电用户姓名显示：在电话呼入/呼出时，话机可直接显示该号码的用户姓名及个人备注信息，使用户能清楚了解每位客户的资料。\n3、按键编程：可以对数字话机的单键进行功能设置。可选择设为分机健、中继健、外线健等。 \n4.、可实现单键拨号、单键转接、自动保留、呼入等待、通话切换、拒接来电、拒接转移、电话会议、经理秘书、来电显示号码及房间姓名等功能\n5.、与上海启赛电话交换机匹配，具备话务台功能\n6、二种颜色可选\n7、非人为损坏保修2年。 ","个",3,{"$nulls":3},0,{"$error":"#VALUE!"},"前台2、服务中心1"]
["Grand total 总计：",{"$nulls":8},{"$f":"SUM(J3:J9)","v":0}]

{"sheet":"QG-29","index":5,"n_rows":43,"n_cols":20,"rows_kept":43,"hidden":true,"merged":[[6,0,6,9],[6,10,8,10],[6,11,8,11],[6,12,8,12],[6,13,8,13],[6,14,8,14],[6,15,8,15],[6,16,8,16],[6,17,8,17],[6,18,8,18],[6,19,8,19],[7,0,7,9],[8,0,8,9],[9,0,9,9],[10,0,10,9],[11,0,11,9],[12,0,12,9],[13,0,13,9],[14,0,14,9],[15,0,15,9],[42,9,42,10],[44,0,44,19],[45,0,45,19]]}
[{"$f":"#REF!","v":{"$error":"#REF!"}}]
[{"$f":"#REF!","v":{"$error":"#REF!"}}]
[{"$f":"#REF!","v":{"$error":"#REF!"}}]
[{"$f":"#REF!","v":{"$error":"#REF!"}}]
["QG-29 GYM Equipments健身设备"]
["Back"]
[" Fitness 健身中心",{"$nulls":9},"700 SF","700 SF",null,"1050  SF","1400  SF","1400  SF","1750  SF","1750  SF","2100  SF","2100  SF"]
["Equipment Standards  设备标准"]
[]
["参考供应商： LifeFitness(LF)力健, TechnoGym(TG)泰诺健，Precor必确",{"$nulls":9},"64㎡","64㎡","（健身房面积）","97㎡","127㎡","127㎡","159㎡","159㎡","191㎡","191㎡"]
["All cardio equipment features personal viewing screens.所有有氧设备都配有个人显示屏。",{"$nulls":9},"minimum (2 bay equivalent)","minimum (2 bay equivalent)","minimum (3 bay equivalent)","minimum (3 bay equivalent)","minimum (4 bay equivalent)","minimum (4 bay equivalent)","minimum (5 bay equivalent)","minimum (5 bay equivalent)","minimum (6 bay equivalent)","minimum (6 bay equivalent)"]
[{"$nulls":10},"Hotels","Hotels","酒店名称","Hotels","Hotels","Hotels","Hotels","Hotels","Hotels","Hotels"]
[{"$nulls":10},"1-250 rooms","1-250 rooms","（房间数量）","251-450 rooms","451-650 rooms","451-650 rooms","651-850 rooms","651-850 rooms","851+ rooms","851+ rooms"]
[{"$nulls":10},"Stretching Area","Stretching Area","拉伸区域","Stretching Area","Stretching Area","Stretching Area","Stretching Area","Stretching Area","Stretching Area","Stretching Area"]
[{"$nulls":10},"50 - 100 sf","50 - 100 sf","（面积）","50 - 100 sf","50 - 100 sf","50 - 100 sf","100 - 200 sf","100 - 200 sf","100 - 200 sf","100 - 200 sf"]
[{"$nulls":10},"4.6㎡","4.6㎡",null,"4.6㎡","4.6㎡","4.6㎡","9.2㎡","9.2㎡","9.2㎡","9.2㎡"]
["EQUIPMENT\n品项","CHN\n中文","PIC\n图片","SPEC",null,"MODEL\n型号","QTY\n数量","Budget U.Price\n预估单价","Total \n总价","VENDOR\n供应商","UNITS","AMOUNT  (RMB)","UNITS\n单位","AMOUNT  (RMB)","UNITS","AMOUNT  (RMB)","UNITS","AMOUNT  (RMB)","UNITS","AMOUNT  (RMB)"]
["Treadmill","跑步机",null,"配15\"LCD触摸多功能操控面板;与iPod和iPhone兼容,USB接驳;数据缩放功能;虚拟私教;41种Workout Landscape™情景锻炼模式;DX3 跑带及踏板系统;数码心率监测系统;步幅感应器                                         \n4.0 HP(8.0 HP峰值)交流马达","泰诺健/必确/力健","选样",null,{"v":56800,"d":"56,800.00"},{"$f":"+H18*G18","v":0},"LF\nTG",3,{"$f":"H18*K18","v":170400},5,{"$f":"H18*M18","v":284000},5,{"$f":"H18*O18","v":284000},6,{"$f":"H18*Q18","v":340800},8,{"$f":"H18*S18","v":454400}]
["Elliptical Trainer","全功能训练器",null,"配15\"LCD触摸多功能操控面板;与iPod和iPhone兼容,USB接驳;数据缩放功能;虚拟私教;36种Workout Landscape™情景锻炼模式;Quiet Drive™降噪技术;数码心率监测系统;Hybrid混合动力节电技术","泰诺健/必确/力健","选样",null,{"v":57290,"d":"57,290.00"},0,"LF\nTG",3,171870,3,171870,5,286450,6,343740,8,458320]
["Upright Bike","直立式健身自行车",null,"配15\"LCD触摸多功能操控面板;与iPod和iPhone兼容,USB接驳;数据缩放功能;虚拟私教;41种Workout Landscape™情景锻炼模式;舒适流线型可轻松调节的车座;数码心率监测系统;车座精确定位;Hybrid混合动力节电技术","泰诺健/必确/力健","选样",null,{"v":41650,"d":"41,650.00"},0,"LF\nTG",1,41650,1,41650,2,83300,2,83300,3,124950]
["Recumbent Bike","靠背式健身自行车",null,"配15\"LCD触摸多功能操控面板;与iPod和iPhone兼容,USB接驳;数据缩放功能;虚拟私教;41种Workout Landscape™情景锻炼模式;穿踏式设计;Comfort Curve® Plus™ 车座及豪华靠背;豪华扶手;Hybrid混合动力节电技术","泰诺健/必确/力健","选样",null,{"v":44330,"d":"44,330.00"},0,"LF\nTG",1,44330,2,88660,3,132990,3,132990,3,132990]
["Adjustable Bench","多重可调节练习椅   ",null,"从平躺到70度有7个不同角度可供调节;独有的单插销技术允许使用者同时调整坐垫和靠背;下拉式手把和滑轮便于设备搬动;经久耐用;采用大号椭圆形钢管结构配以符合人体曲线的波浪形护垫","泰诺健/必确/力健","选样",null,{"v":5500,"d":"5,500.00"},0,"LF\nTG",2,11000,2,11000,2,11000,2,11000,2,11000]
["Pro style Rubber Dumbbells","哑铃",null,"产品特征：\n•  2, 4, 6, 8,10,12,14,16,18,20. (2 kg 递增, 10 组)\n•使用现代先进工艺技术生产的经典哑铃\n• 6. 适用于所有健身水平的使用者","泰诺健/必确/力健","选样",null,{"v":9500,"d":"9,500.00"},0,"LF\nTG",1,9500,1,9500,1,9500,1,9500,1,9500]
["Dumbbell Rack","双层哑铃架（需另配哑铃） ",null,"可摆放十对哑铃;配有重量图示，便于哑铃摆放;经久耐用;采用大号椭圆形钢管结构","泰诺健/必确/力健","选样",null,{"v":6400,"d":"6,400.00"},0,"LF\nTG",1,6400,1,6400,1,6400,1,6400,1,6400]
["FIT 1.0*","史密斯多功能训练器（需另配训练椅）",null,"采用绳动系列的技术，三个固定滑轮组可提供多样化的训练模式;简单易懂的训练指示牌标明设备的正确的使用方法以及可锻炼的肌肉;   ","泰诺健/必确/力健","选样",null,{"v":25500,"d":"25,500.00"},0,"LF\nTG",1,25500,1,25500,1,25500,1,25500,1,25500]
["Leg Extension","大腿伸展训练器    ",null,"简易调节配重系统;醒目的健身指示牌;完全保护罩和滑轮盖系统;坐垫与背垫成100度角，让使用者增加锻炼时的舒适感，并协助收缩四头肌同时不受腿后肌的柔韧性所限制","泰诺健/必确/力健","选样",null,{"v":26300,"d":"26,300.00"},0,"LF\nTG",null,0,null,0,1,26300,1,26300,1,26300]
["Leg Curl","坐式大腿屈伸训练器",null,"简易调节配重系统;醒目的健身指示牌;完全保护罩和滑轮盖系统;当坐下时也可容易调较背垫、颈垫和锻炼幅度","泰诺健/必确/力健","选样",null,{"v":27200,"d":"27,200.00"},0,"LF\nTG",null,0,null,0,1,27200,1,27200,1,27200]
["Shoulder Press","坐式推肩训练器",null,"推简易调节配重系统;醒目的健身指示牌;完全保护罩和滑轮盖系统;举动作是在头顶上之向心推举活动，使活动倍感自然","泰诺健/必确/力健","选样",null,{"v":23900,"d":"23,900.00"},0,"LF\nTG",null,0,null,0,1,23900,1,23900,1,23900]
["Chest Press","坐式胸肌推举训练器    ",null,"简易调节配重系统;醒目的健身指示牌;完全保护罩和滑轮盖系统;向心之推举手臂为使用者提供自然的前推动作","泰诺健/必确/力健","选样",null,{"v":25600,"d":"25,600.00"},0,"LF\nTG",null,0,null,0,1,25600,1,25600,1,25600]
["Lat Pulldown","高拉力背肌训练器 ",null,"离心简易调节配重系统;醒目的健身指示牌;完全保护罩和滑轮盖系统;外拉动作为使用者提供自然的下拉力动作模式","泰诺健/必确/力健","选样",null,{"v":25300,"d":"25,300.00"},0,"LF\nTG",null,0,null,0,1,25300,1,25300,1,25300]
["Pec Fly","蝴蝶式胸肌训练器",null,"扶手简易调节配重系统;醒目的健身指示牌;完全保护罩和滑轮盖系统;可自动调节，适合不同臂长的锻炼者使用","泰诺健/必确/力健","选样",null,{"v":30040,"d":"30,040.00"},0,"LF\nTG",null,0,null,0,null,0,1,30040,1,30040]
["Back Extension","背肌伸展训练器",null,"简易调节配重系统;醒目的健身指示牌;完全保护罩和滑轮盖系统;有5个起始位置可让锻炼者调较个人限幅","泰诺健/必确/力健","选样",null,{"v":31180,"d":"31,180.00"},0,"LF\nTG",null,0,null,0,null,0,1,31180,1,31180]
["Abdominal Crunch","坐式腹肌训练器   ",null,"简易调节配重系统;醒目的健身指示牌;完全保护罩和滑轮盖系统;集合了肘垫和背垫，连同扶手的设计，可增加上半身的稳定性","泰诺健/必确/力健","选样",null,{"v":30040,"d":"30,040.00"},0,"LF\nTG",null,0,null,0,null,0,1,30040,1,30040]
["Row Rear Delt","坐式背肌训练器      ",null,"简易调节配重系统;醒目的健身指示牌;完全保护罩和滑轮盖系统;离心后拉活动是根据最自然的活动范围","泰诺健/必确/力健","选样",null,{"v":30040,"d":"30,040.00"},0,"LF\nTG",null,0,null,0,null,0,null,0,1,30040]
["Seated Calf","小腿伸展训练器",null,"倒模形的包胶脚踏，有助于平衡并促进反复锻炼动作简易调节配重系统;醒目的健身指示牌;完全保护罩和滑轮盖系统;","泰诺健/必确/力健","选样",null,{"v":29660,"d":"29,660.00"},0,"LF\nTG",null,0,null,0,null,0,null,0,1,29660]
["Cross Pulley","可调式双滑轮多功能训练器",null,"双辊机构或滑轮外壳可轻松平稳地调节, 每边有20个调整位置能产生多种锻炼选择;铁片阻力比为1:4可产生较低起始阻力，此比例适合初学者使用；也可调整为适合特定运动的较高速运动","泰诺健/必确/力健","选样",null,{"v":38230,"d":"38,230.00"},0,"LF\nTG",null,0,null,0,null,0,null,0,null,0]
["Foam Roller","泡沫轴",null,null,"泰诺健/必确/力健","选样",null,{"v":347,"d":"347.00"},0,"Go Fit",2,694,4,1388,6,2082,6,2082,6,2082]
["Massage Stick","瑜伽垫",null,null,"泰诺健/必确/力健","选样",null,{"v":100,"d":"100.00"},0,"Go Fit",2,200,4,400,6,600,6,600,6,600]
["Stability Ball 55cm","健身球    ",null,null,"泰诺健/必确/力健","选样",null,{"v":500,"d":"500.00"},0,"Go Fit",1,500,1,500,1,500,2,1000,2,1000]
["Stability Ball 65cm","健身球    ",null,null,"泰诺健/必确/力健","选样",null,{"v":560,"d":"560.00"},0,"Go Fit",1,560,1,560,1,560,2,1120,2,1120]
["Mini Stretch Bands","瑜伽乳胶拉力带4件套",null,null,"泰诺健/必确/力健","选样",null,{"v":201,"d":"201.00"},0,"Go Fit",2,402,4,804,6,1206,6,1206,6,1206]
["Stretching Rope","弹力绳",{"$nulls":3},"选样",null,{"v":78,"d":"78.00"},0,"Go Fit",1,78,1,78,1,78,2,156,2,156]
[{"$nulls":7},"Total",{"$f":"SUM(I18:I42)","v":0},"佛山软装已买",null,0,null,{"$f":"SUM(N18:N42)","v":642310},null,972466,null,1178954,null,{"$f":"SUM(T18:T42)","v":1508484}]

{"sheet":"QG-30","index":6,"n_rows":20,"n_cols":14,"rows_kept":20,"hidden":true,"merged":[[7,13,16,13],[19,4,19,10]]}
[{"$f":"#REF!","v":{"$error":"#REF!"}}]
[{"$f":"#REF!","v":{"$error":"#REF!"}}]
[{"$f":"#REF!","v":{"$error":"#REF!"}}]
[{"$f":"#REF!","v":{"$error":"#REF!"}}]
["QG-30 Key system门卡系统"]
["Back"]
["Code","Quotation Grouping No","Description\n品项","Translation\n中文","Category\n类别","Sub Category\n子类别","Brand\n参考品牌","Supplier","Either :         Quantity Per Seat","Or :          Quantity Per Table","Quantity Required\n所需数量","Estimate Unit Cost\n预估单价\nRMB","Estimate Total Cost\n预估总价\nRMB","Remarks\n备注"]
[1,"QG-30-A","Key Card Electronic Lock System VC3000","电子门锁系统",null,null,"亚萨合莱",{"$nulls":5},{"$f":"K8*L8","v":0}]
[2,"QG-30-A","Key Issuing software","制卡机",null,null,"亚萨合莱",{"$nulls":5},0]
[3,"QG-30-A","Printer","打印机",null,null,"亚萨合莱",{"$nulls":3},4,null,0]
[4,"QG-30-A","Portable programmer","移动读卡器",null,null,"亚萨合莱",{"$nulls":5},0]
[5,"QG-30-A","Key Card Encoder","解码器",null,null,"亚萨合莱",{"$nulls":5},0]
[6,"QG-30-A","VC3000 Check-in Terminal with power supply","前台制卡电脑",null,null,"亚萨合莱",{"$nulls":5},0]
[7,"QG-30-A","Terminal Network node for key card system","网络维护终端",null,null,"亚萨合莱",{"$nulls":5},0]
[8,"QG-30-A","KVA Uninterrupted power supply (UPS)","UPS",null,null,"亚萨合莱",{"$nulls":5},0]
[9,"QG-30-A","Start Up cost for key card system","系统集成费",null,null,"亚萨合莱",{"$nulls":5},0]
[10,"QG-30-A","Training cost for key card system","系统培训费",null,null,"亚萨合莱",{"$nulls":5},0]
[11,"QG-30-B","Key cards with logo - magni stripe","钥匙卡",null,null,"亚萨合莱",{"$nulls":4},{"v":5,"d":"5.00"},{"$f":"L18*K18","v":0}]
[null,null,"(Format line)"]
[null,null,"Grand Total 总计",null,"软装公司已买",{"$nulls":6},{"v":0,"d":"0.00"},{"$f":"SUM(M8:M19)","v":0}]

{"sheet":"QG-32已合并","index":7,"n_rows":10,"n_cols":11,"rows_kept":10,"hidden":true,"merged":[[0,0,0,2],[0,9,0,13],[1,9,1,13],[2,0,2,2],[2,7,2,8],[2,9,2,13],[3,0,3,2],[3,7,3,8],[3,9,3,13],[4,0,4,4],[4,9,4,13],[4,14,5,14],[9,0,9,7]]}
[{"$f":"#REF!","v":{"$error":"#REF!"}}]
[{"$f":"#REF!","v":{"$error":"#REF!"}}]
[{"$f":"#REF!","v":{"$error":"#REF!"}}]
[{"$f":"#REF!","v":{"$error":"#REF!"}}]
["QG-32后台区办公室家具/员工餐厅桌椅/货架/更衣柜(不包括客区公共区域家具)"]
["Back"]
["序号","品名","技术/规格参数","单位","数量","含税单价","税前单价","税金","合价","参考图片","备注"]
[]
[]
["Grand total 总计："]

{"sheet":"QG-37餐饮用具已合并","index":8,"n_rows":10,"n_cols":13,"rows_kept":10,"hidden":true,"merged":[[0,0,0,2],[2,0,2,2],[3,0,3,2],[9,0,9,8]]}
[{"$f":"#REF!","v":{"$error":"#REF!"}}]
[{"$f":"#REF!","v":{"$error":"#REF!"}}]
[{"$f":"#REF!","v":{"$error":"#REF!"}}]
[{"$f":"#REF!","v":{"$error":"#REF!"}}]
["QG-37餐饮用具"]
["Back",{"$nulls":11},"箱规要注明；厨房布丁杯开业后零买"]
["序号","品名","参考品牌","技术/规格参数","单位","数量","含税单价","税前单价","税金","合计","图片","备注","定制品规一类；打包盒等外带都带定制"]
[]
[]
["Grand total 总计：",{"$nulls":8},0]

{"sheet":"QG-42员工更衣室用品已合并","index":9,"n_rows":8,"n_cols":22,"rows_kept":8,"hidden":true,"merged":[[0,0,0,3],[2,0,2,3],[3,0,3,3],[7,0,7,8]]}
[{"$f":"#REF!","v":{"$error":"#REF!"}}]
[{"$f":"#REF!","v":{"$error":"#REF!"}}]
[{"$f":"#REF!","v":{"$error":"#REF!"}}]
[{"$f":"#REF!","v":{"$error":"#REF!"}}]
["QG-42 - STAFF LOCKERS & Dormetrie员工更衣室物品"]
["Back"]
["序号","品名","参考品牌","技术/规格参数","单位","数量","含税单价","税前单价","税金","合价","参考图片","备注",{"$nulls":7},"报价品牌","规格","报价图片"]
["Grand total 总计：",{"$nulls":8},0]